{"text_format":"1","workbook":"xlsx","n_sheets":5,"sheets":["CLASSIFICAÇÃO GERAL 2025","set2025","out2025","nov2025","dez2025"],"not_rendered":{"charts":0,"images":2,"macros":1,"external_links":0,"defined_names":1,"comments":0,"pivot_tables":0},"unopened":[],"bounds":{"document_bytes":16777216,"sheet_cells":100000,"rows_first":2000,"rows_last":500,"rows_between":2000,"halvings":0,"cell_chars":16384,"cell_head_chars":4096},"cells_cut":0,"cells_raw":0,"read":"whole","date_system":"1900"}

{"sheet":"CLASSIFICAÇÃO GERAL 2025","index":0,"n_rows":128,"n_cols":5,"rows_kept":128,"cut":false,"hidden":false,"merged":[[0,0,0,4],[1,0,1,4]]}
["CLASSIFICAÇÃO GERAL ACPA – TEMPORADA 2025 SÁBADO"]
["TRINCA-FERRO FIBRA","Pássaro","Proprietário","Origem","Pontos"]
["POSIÇÃO","NOME DO PÁSSARO","NOME DO PROPRIETÁRIO","ORIGEM (CIDADE)","PONTUAÇÃO"]
["1º","TERRORISTA","RODRIGO/BRUNO","PETRÓPOLIS",{"$f":"24+15+23+26+20+28+24+23+23+21+18","v":245}]
["2º","BICO BOM","PERROTA","PARAÍBA DO SUL",{"$f":"26+22+28+19+24+22+17+30+24+23","v":235}]
["3º","SUSSURRO","DOMINGOS/LOIRIN","PARAÍBA DO SUL",{"$f":"23+24+17+13+21+22+15+20+13+20+17","v":205}]
["4º","NEFILIN","OTONIEL","TRÊS RIOS",{"$f":"17+18+26+23+19+26+15","v":144}]
["5º","MATA RINDO","JUNINHO/ALESSANDRO/DIEGO","JUIZ DE FORA",{"$f":"24+28+28+30+28","v":138}]
["6º","ZAP ZAP","GLEISON","TRÊS RIOS",{"$f":"21+23+20+18+17+20","v":119}]
["7º","ZEUS","HENRIQUE","ANTA",{"$f":"23+23+19+28+21","v":114}]
["8º","TUIM","JOSÉ RICARDO","PARAÍBA DO SUL",{"$f":"17+17+21+22+15","v":92}]
["9º","MALVADO","VINÍCIUS","PETRÓPOLIS",{"$f":"28+30+30","v":88}]
["10º","TAZ","ANDERSON/LEVI","PARAÍBA DO SUL",{"$f":"15+26+28+17","v":86}]
["11º","CARRASCO","IAGO","MATIAS BARBOSA",{"$f":"30+26+22","v":78}]
["12º","PIT BULL","JOÃO MARCOS","AREAL",{"$f":"15+20+18+19","v":72}]
["13º","MALVADÃO","ROGÉRIO","JUIZ DE FORA",{"$f":"20+23+23","v":66}]
["14º","FRENÉTICO","GIL/LUIZ","JUIZ DE FORA",{"$f":"28+30","v":58}]
["15º","OURO BRANCO","FELIPE/XAVIER","TRÊS RIOS",{"$f":"22+18+18","v":58}]
["16º","TROVÃO","LUCIMAR/LUIZ HENRIQUE","TRÊS RIOS",{"$f":"28+28","v":56}]
["17º","ALBATROZ","GABRIEL","MAR DE ESPANHA",{"$f":"30+24","v":54}]
["18º","ABSOLUTO","SOLDADO","NOVA IGUAÇU",{"$f":"30+16","v":46}]
["19º","ZEUS","ARTHUR/ALESSANDRO","JUIZ DE FORA",{"$f":"22+24","v":46}]
["20º","FARISEU","WL FAMÍLIA MINGAL","PARAÍBA DO SUL",{"$f":"21+24","v":45}]
["21º","FERA","REINALDO","JUIZ DE FORA",{"$f":"28+16","v":44}]
["22º","PRECIOSO","FAMÍLIA HONORATO","PARAÍBA DO SUL",{"$f":"22+21","v":43}]
["23º","FUZILEIRO","WANDER BOLOTARI","BICAS",{"$f":"20+21","v":41}]
["24º","NOVATO","LUCIMAR/LUIZ HENRIQUE","TRÊS RIOS",{"$f":"17+19","v":36}]
["25º","GAVIÃO","JOSÉ PAULO","PARAÍBA DO SUL",{"$f":"18+16","v":34}]
["26º","IGNORANTE","JUNINHO","TRÊS RIOS",{"$f":"15+19","v":34}]
["27º","ADRENALINA","ROGÉRIO","JUIZ DE FORA",{"$f":"14+18","v":32}]
["28º","JUMBO","ALEXANDRE","JUIZ DE FORA",{"$f":"15+17","v":32}]
["29º","BATE CARTEIRA","PANDA","CATAGUASES",30]
["30º","FERRADURA","GUSTAVO/GILSON","TRÊS RIOS/S. DUMONT",30]
["31º","FULGORE","SILAS FLÁVIO","TRÊS RIOS",{"$f":"16+14","v":30}]
["32º","MEIA NOITE","MARCÃO","JUIZ DE FORA",30]
["33º","SUPER SONICO","GABRIEL","MAR DE ESPANHA",30]
["34º","ZULU","JOÃO CARLOS","JUIZ DE FORA",30]
["35º","TAURUS","EULER","BICAS",28]
["36º","BARÃO","RAFAEL DIAS","PARAÍBA DO SUL",26]
["37º","BAZUCA","ADALBERTO","BEMPOSTA",26]
["38º","CORINGA","REINALDO","JUIZ DE FORA",26]
["39º","CRACK","MATHEUS","JUIZ DE FORA",26]
["40º","FEROZ","GILSON/GUSTAVO","TRÊS RIOS/S. DUMONT",26]
["41º","MARAVILHA","RUAN","MAR DE ESPANHA",26]
["42º","REI DA MAFIA","DANILO","BICAS",26]
["43º","ASA BRANCA","THIAGO BATISTA","PETRÓPOLIS",24]
["44º","CYBORG","JÚNIOR","MARIPÁ DE MINAS",24]
["45º","PASTOR","RAFAEL ANDRADE","PETRÓPOLIS",24]
["46º","SOMBRA","HENRIQUE","ANTA",24]
["47º","BOLT","RAFAEL","PARAÍBA DO SUL",23]
["48º","MARESIA","GABRIEL","MARIPÁ DE MINAS",23]
["49º","AVASSALADOR","WELINGTON","TRÊS RIOS",22]
["50º","CREFINHO","RODRIGO","SÃO JOSÉ",22]
["51º","GUARDIÃO","ÍCARO","PARAÍBA DO SUL",22]
["52º","METEORO","HARLEI","TRÊS RIOS",22]
["53º","THOR","JUNIOR","MARIPÁ DE MINAS",22]
["54º","CHEFINHO","RODRIGO","PETRÓPOLIS",21]
["55º","NOVATO","MAGON","VASSOURAS",21]
["56º","SNIPER","F. MINGAL/MATHEUS","PARAÍBA DO SUL",21]
["57º","TEMEROSO","MUTUM","JUIZ DE FORA",21]
["58º","TREM BALA","GUSTAVO/GILSON","TRÊS RIOS/S. DUMONT",21]
["59º","CONFUSÃO","CICINHO","PARAÍBA DO SUL",20]
["60º","MASCARÁDO","MARCINHO","AREAL",20]
["61º","TAURUS","LÉO","PETRÓPOLIS",20]
["62º","TOP","FAMÍLIA MINGAL","PARAÍBA DO SUL",20]
["63º","TRUCO","IGOR LIMA","TRÊS RIOS",20]
["64º","ADRENALINA","MUTUM","JUIZ DE FORA",19]
["65º","ANDROID","OTÁVIO","LEVY GASPARIAN",19]
["66º","BRUTO","RUAN","PARAÍBA DO SUL",19]
["67º","JUSTICEIRO","HENRIQUE","ANTA",19]
["68º","SAMURAI","VANDERLY","BICAS",19]
["69º","SATÃ","SÉRGIO HENRIQUE","PARAÍBA DO SUL",19]
["70º","TORETO","NILMAR","MAR DE ESPANHA",19]
["71º","APOCALIPSE","RAMON","MATIAS BARBOSA",18]
["72º","CABULOSO","LEVI","PARAÍBA DO SUL",18]
["73º","CAPA DE REVISTA","RAFAEL/RATO","MIGUEL PEREIRA",18]
["74º","DIEGO","EULER","TRÊS RIOS",18]
["75º","HULK","LEANDRO","GUARARA",18]
["76º","CHACAL","JUNINHO","TRÊS RIOS",17]
["77º","HORUS","IVERSON","TRÊS RIOS",17]
["78º","TORNADO","RAMON","MATIAS BARBOSA",17]
["79º","157","TT","TRÊS RIOS",16]
["80º","BIRO BIRO","LUCAS/LUCAS","BEMPOSTA",16]
["81º","CATEDRAL","GUSTAVO/GILSON","TRÊS RIOS/J. DE FORA",16]
["82º","CICLOPE","ALEXANDRE","JUIZ DE FORA",16]
["83º","JHON WICK","IVERSON","TRÊS RIOS",16]
["84º","MISTÉRIO","BRUNO/RODRIGO","PETRÓPOLIS",16]
["85º","PRATA DA CASA","MATHEUS","PARAÍBA DO SUL",16]
["86º","ROBA CENA","UESLEI","PARAÍBA DO SUL",16]
["87º","SUPER BOY","EDUARDO","TRÊS RIOS",16]
["88º","397","SÍLVIO LEAL","PETRÓPOLIS",15]
["89º","ABSOLUTO","GILSON/GUSTAVO","TRÊS RIOS/S. DUMONT",15]
["90º","CANGACEIRO","GABRIEL","PETRÓPOLIS",15]
["91º","COVID-19","GUSTAVO/GILSON","TRÊS RIOS/S. DUMONT",15]
["92º","RESIDENT EVIL","WANDER/NICIA","BICAS",15]
["93º","COBRA","ADELMO","PARAÍBA DO SUL",14]
["94º","ECLIPSE","GABRIEL","MAR DE ESPANHA",14]
["95º","FÓRMULA 1","GILSON/GUSTAVO","TRÊS RIOS/S. DUMONT",14]
["96º","GRANADA","GIBA","TRÊS RIOS",14]
["97º","INVICTA","MÁRCIO","PARAÍBA DO SUL",14]
["98º","PIVETE","HENRIQUE","ANTA",14]
["99º","QUALQUER COISA","GELSON","TRÊS RIOS",14]
["100º","TALISMÃ","LECO","PETRÓPOLIS",14]
["101º","V8","DOUGLAS","TRÊS RIOS",14]
["102º","XIA","FAMÍLIA MINGAL","PARAÍBA DO SUL",14]
["103º","ARENA BRIGADA","ADALBERTO","BEMPOSTA",13]
["104º","DIAMANTE","JOANES","PARAÍBA DO SUL",13]
["105º","EXCEPTOS","RAFAEL DIAS","PARAÍBA DO SUL",13]
["106º","FLEXA","RAFAEL/RATO","MIGUEL PEREIRA",13]
["107º","MARRETA","MARCELO","SEBOLAS",13]
["108º","ODIN","LEVI","TRÊS RIOS",13]
["109º","PAULO BIGODE","JÚNIOR/GUSTAVO","TRÊS RIOS",13]
["110º","SEM LIMITE","IGOR","PETRÓPOLIS",13]
["111º","SENNA","LEVI LAMECK/MATHEUS","PARAÍBA DO SUL",13]
["112º","SUPER","RODRIGO/BRUNO","PETRÓPOLIS",13]
["113º"]
["114º"]
["115º"]
["116º"]
["117º"]
["118º"]
["119º"]
["120º"]
["121º"]
["122º"]
["123º"]
["124º"]
["125º"]

{"sheet":"set2025","index":1,"n_rows":42,"n_cols":13,"rows_kept":42,"cut":false,"hidden":false,"merged":[[0,7,0,12],[0,0,0,5]]}
["13/09/2025 (SÁBADO)",null,null,null,null,null,null,"20/09/2025 (SÁBADO)"]
["POS.","PÁSSARO","PROPRIETÁRIO","ORIGEM","CANTOS","PONTOS",null,"POS.","PÁSSARO","PROPRIETÁRIO","ORIGEM","CANTOS","PONTOS"]
["1º","SUPER SONICO","GABRIEL","MAR DE ESPANHA",165,30,null,"1º","MEIA NOITE","MARCÃO","JUIZ DE FORA",192,30]
["2º","TAURUS","EULER","BICAS",149,28,null,"2º","MATA RINDO","JUNINHO/ALESSANDRO","JUIZ DE FORA",142,28]
["3º","MARAVILHA","RUAN","MAR DE ESPANHA",143,26,null,"3º","REI DA MAFIA","DANILO","BICAS",140,26]
["4º","MATA RINDO","JUNINHO/ARTHUR","JUIZ DE FORA",136,24,null,"4º","ALBATROZ","MATHEUS/TIM","JUIZ DE FORA",140,24]
["5º","MARESIA","GABRIEL","MARIPÁ DE MINAS",132,23,null,"5º","SUSSURRO","DOMINGOS/LOIRIN","PARAÍBA DO SUL",124,23]
["6º","ZEUS","ARTHUR/ALESSANDRO","JUIZ DE FORA",131,22,null,"6º","OURO BRANCO","FELIPE","TRÊS RIOS",123,22]
["7º","FARISEU","WL FAMÍLIA MINGAL","PARAÍBA DO SUL",129,21,null,"7º","FUZILEIRO","WANDER","BICAS",120,21]
["8º","FUZILEIRO","WANDER BOLOTARI","BICAS",125,20,null,"8º","MALVADÃO","ROGÉRIO","JUIZ DE FORA",117,20]
["9º","TORETO","NILMAR","MAR DE ESPANHA",122,19,null,"9º","IGNORANTE","JUNINHO","TRÊS RIOS",114,19]
["10º","HULK","LEANDRO","GUARARA",112,18,null,"10º","DIEGO","EULER","TRÊS RIOS",100,18]
["11º","HORUS","IVERSON","TRÊS RIOS",112,17,null,"11º","NEFILIN","OTONIEL","TRÊS RIOS",91,17]
["12º","JHON WICK","IVERSON","TRÊS RIOS",102,16,null,"12º","FULGORE","SILAS","TRÊS RIOS",88,16]
["13º","IGNORANTE","JUNINHO","TRÊS RIOS",92,15,null,"13º","RESIDENT EVIL","WANDER/NICIA","BICAS",72,15]
["14º","PIVETE","HENRIQUE","ANTA",89,14,null,"14º"]
["15º","MARRETA","MARCELO","SEBOLAS",73,13,null,"15º"]
["16º","ELVIS","VALDO MARCIO","TRÊS RIOS",71,null,null,"16º"]
["17º","TERRORISTA","FÁBIO","TRÊS RIOS",65,null,null,"17º"]
["18º","FINAL FELIZ","WELINGTON BRITO","PETRÓPOLIS",47,null,null,"18º"]
["19º",null,null,null,null,null,null,"19º"]
["20º",null,null,null,null,null,null,"20º"]
["21º",null,null,null,null,null,null,"21º"]
["22º",null,null,null,null,null,null,"22º"]
["23º",null,null,null,null,null,null,"23º"]
["24º",null,null,null,null,null,null,"24º"]
["25º",null,null,null,null,null,null,"25º"]
["26º",null,null,null,null,null,null,"26º"]
["27º",null,null,null,null,null,null,"27º"]
["28º",null,null,null,null,null,null,"28º"]
["29º",null,null,null,null,null,null,"29º"]
["30º",null,null,null,null,null,null,"30º"]
["31º",null,null,null,null,null,null,"31º"]
["32º",null,null,null,null,null,null,"32º"]
["33º",null,null,null,null,null,null,"33º"]
["34º",null,null,null,null,null,null,"34º"]
["35º",null,null,null,null,null,null,"35º"]
["36º",null,null,null,null,null,null,"36º"]
["37º",null,null,null,null,null,null,"37º"]
["38º",null,null,null,null,null,null,"38º"]
["39º",null,null,null,null,null,null,"39º"]
["40º",null,null,null,null,null,null,"40º"]

{"sheet":"out2025","index":2,"n_rows":42,"n_cols":27,"rows_kept":42,"cut":false,"hidden":false,"merged":[[0,0,0,5],[0,7,0,12],[0,14,0,19],[0,21,0,26]]}
["04/10/2025 (SÁBADO)",null,null,null,null,null,null,"11/10/2025 (SÁBADO)",null,null,null,null,null,null,"18/10/2025 (SÁBADO)",null,null,null,null,null,null,"25/10/2025 (SÁBADO)"]
["POS.","PÁSSARO","PROPRIETÁRIO","ORIGEM","CANTOS","PONTOS",null,"POS.","PÁSSARO","PROPRIETÁRIO","ORIGEM","CANTOS","PONTOS",null,"POS.","PÁSSARO","PROPRIETÁRIO","ORIGEM","CANTOS","PONTOS",null,"POS.","PÁSSARO","PROPRIETÁRIO","ORIGEM","CANTOS","PONTOS"]
["1º","BATE CARTEIRA","PANDA","CATAGUASES",159,30,null,"1º","ALBATROZ","EULER","BICAS",204,30,null,"1º","ABSOLUTO","SOLDADO","NOVA IGUAÇU",140,30,null,"1º","MATA RINDO","JUNINHO/ALESSANDRO/DIEGO","JUIZ DE FORA",177,30]
["2º","FERA","REINALDO","JUIZ DE FORA",134,28,null,"2º","MATA RINDO","JUNINHO/ALESSANDRO/DIEGO","JUIZ DE FORA",180,28,null,"2º","FRENÉTICO","GIL/LUIZ","JUIZ DE FORA",128,28,null,"2º","BICO BOM","PERROTA","PARAÍBA DO SUL",127,28]
["3º","BICO BOM","PERROTA","PARAÍBA DO SUL",133,26,null,"3º","FEROZ","GILSON/GUSTAVO","TRÊS RIOS/S. DUMONT",165,26,null,"3º","CORINGA","REINALDO","JUIZ DE FORA",124,26,null,"3º","TERRORISTA","FÁBIO","TRÊS RIOS",125,26]
["4º","TERRORISTA","FÁBIO","TRÊS RIOS",131,24,null,"4º","SUSSURRO","DOMINGOS/LOIRIN","PARAÍBA DO SUL",141,24,null,"4º","CYBORG","JÚNIOR","MARIPÁ DE MINAS",123,24,null,"4º","FARISEU","WL FAMÍLIA MINGAL","PARAÍBA DO SUL",124,24]
["5º","MALVADÃO","ROGÉRIO","JUIZ DE FORA",126,23,null,"5º","MALVADÃO","ROGÉRIO","JUIZ DE FORA",129,23,null,"5º","TERRORISTA","FÁBIO","TRÊS RIOS",120,23,null,"5º","ZEUS","HENRIQUE","ANTA",119,23]
["6º","PRECIOSO","FAMÍLIA HONORATO","PARAÍBA DO SUL",121,22,null,"6º","BICO BOM","PERROTA","PARAÍBA DO SUL",126,22,null,"6º","THOR","JUNIOR","MARIPÁ DE MINAS",118,22,null,"6º","CREFINHO","RODRIGO","SÃO JOSÉ",117,22]
["7º","TREM BALA","GUSTAVO/GILSON","TRÊS RIOS/S. DUMONT",118,21,null,"7º","NOVATO","MAGON","VASSOURAS",113,21,null,"7º","PRECIOSO","FAMÍLIA HONORATO","PARAÍBA DO SUL",116,21,null,"7º","ZAP ZAP","HERLO","PARAÍBA DO SUL",114,21]
["8º","TOP","FAMÍLIA MINGAL","PARAÍBA DO SUL",117,20,null,"8º","TAURUS","LÉO","PETRÓPOLIS",112,20,null,"8º","CONFUSÃO","CICINHO","PARAÍBA DO SUL",114,20,null,"8º","TRUCO","IGOR LIMA","TRÊS RIOS",113,20]
["9º","ADRENALINA","MUTUM","JUIZ DE FORA",110,19,null,"9º","NOVATO","LUCIMAR/LUIZ HENRIQUE","TRÊS RIOS",110,19,null,"9º","SAMURAI","VANDERLY","BICAS",107,19,null,"9º","SATÃ","SÉRGIO HENRIQUE","PARAÍBA DO SUL",107,19]
["10º","CAPA DE REVISTA","RAFAEL/RATO","MIGUEL PEREIRA",104,18,null,"10º","OURO BRANCO","FELIPE","TRÊS RIOS",109,18,null,"10º","NEFILIN","OTONIEL","TRÊS RIOS",104,18,null,"10º","OURO BRANCO","FELIPE/XAVIER","TRÊS RIOS",104,18]
["11º","NOVATO","LUCIMAR/LUIZ HENRIQUE","TRÊS RIOS",100,17,null,"11º","JUMBO","ALEXANDRE","JUIZ DE FORA",103,17,null,"11º","SUSSURRO","DOMINGOS/LOIRIN","PARAÍBA DO SUL",100,17,null,"11º","TUIN","JOSÉ RICARDO","PARAÍBA DO SUL",102,17]
["12º","PRATA DA CASA","MATHEUS","PARAÍBA DO SUL",97,16,null,"12º","CATEDRAL","GUSTAVO/GILSON","TRÊS RIOS/J. DE FORA",103,16,null,"12º","BIRO BIRO","LUCAS/LUCAS","BEMPOSTA",94,16,null,"12º","SUPER BOY","EDUARDO","TRÊS RIOS",101,16]
["13º","JUMBO","ALEXANDRE","JUIZ DE FORA",85,15,null,"13º","TERRORISTA","FÁBIO","TRÊS RIOS",103,15,null,"13º","CANGACEIRO","GABRIEL","PETRÓPOLIS",92,15,null,"13º","397","SÍLVIO LEAL","PETRÓPOLIS",99,15]
["14º","FULGORE","SILAS FLÁVIO","TRÊS RIOS",81,14,null,"14º","ECLIPSE","GABRIEL","MAR DE ESPANHA",100,14,null,"14º","V8","DOUGLAS","TRÊS RIOS",91,14,null,"14º","TALISMÃ","LECO","PETRÓPOLIS",96,14]
["15º","FLEXA","RAFAEL/RATO","MIGUEL PEREIRA",78,13,null,"15º","PAULO BIGODE","JÚNIOR/GUSTAVO","TRÊS RIOS",95,13,null,"15º","ODIN","LEVI","TRÊS RIOS",76,13,null,"15º","SUSSURRO","LOIRIN/DOMINGOS","PARAÍBA DO SUL",94,13]
["16º","MAJESTOSO","FAMÍLIA MINGAL","PARAÍBA DO SUL",78,null,null,"16º","ABUTRE","ALEXANDRE","JUIZ DE FORA",90,null,null,"16º","MERCENÁRIO","ALEXANDRE","JUIZ DE FORA",66,null,null,"16º","NEFILIN","OTONIEL","TRÊS RIOS",94]
["17º","PREJUÍZO","SEKINHO","TRÊS RIOS",67,null,null,"17º","NEFILIN","OTONIEL","TRÊS RIOS",85,null,null,"17º","JUMBO","ALEXANDRE","JUIZ DE FORA",63,null,null,"17º","TIRO CERTO","SASSA","PARAÍBA DO SUL",93]
["18º",null,null,null,null,null,null,"18º","V8","DOUGLAS","TRÊS RIOS",84,null,null,"18º","FILHOTE BOI","FAMÍLIA MINGAL","PARAÍBA DO SUL",63,null,null,"18º","METEORO","HARLEI","TRÊS RIOS",91]
["19º",null,null,null,null,null,null,"19º","VAPO VAPO","PINHEIRO","TRÊS RIOS",81,null,null,"19º",null,null,null,null,null,null,"19º","FIEL","MATHEUS/JÚLIO","PARAÍBA DO SUL",88]
["20º",null,null,null,null,null,null,"20º",null,null,null,null,null,null,"20º",null,null,null,null,null,null,"20º","SAI DE BAIXO","FAMÍLIA MINGAL","PARAÍBA DO SUL",88]
["21º",null,null,null,null,null,null,"21º",null,null,null,null,null,null,"21º",null,null,null,null,null,null,"21º","BRUTO","RUAN","PARAÍBA DO SUL",88]
["22º",null,null,null,null,null,null,"22º",null,null,null,null,null,null,"22º",null,null,null,null,null,null,"22º","ODIN","SASSA","PARAÍBA DO SUL",81]
["23º",null,null,null,null,null,null,"23º",null,null,null,null,null,null,"23º",null,null,null,null,null,null,"23º","IMPERADOR","LECO","PETRÓPOLIS",80]
["24º",null,null,null,null,null,null,"24º",null,null,null,null,null,null,"24º",null,null,null,null,null,null,"24º","MERCENÁRIO","ALEXANDRE","JUIZ DE FORA",74]
["25º",null,null,null,null,null,null,"25º",null,null,null,null,null,null,"25º",null,null,null,null,null,null,"25º","TADALAFIL","KALEBE/GERSON","TRÊS RIOS",71]
["26º",null,null,null,null,null,null,"26º",null,null,null,null,null,null,"26º",null,null,null,null,null,null,"26º","JÓIA RARA","ALEXANDRE","JUIZ DE FORA",55]
["27º",null,null,null,null,null,null,"27º",null,null,null,null,null,null,"27º",null,null,null,null,null,null,"27º","CAVARÚ","NEGUINHO","PARAÍBA DO SUL",43]
["28º",null,null,null,null,null,null,"28º",null,null,null,null,null,null,"28º",null,null,null,null,null,null,"28º"]
["29º",null,null,null,null,null,null,"29º",null,null,null,null,null,null,"29º",null,null,null,null,null,null,"29º"]
["30º",null,null,null,null,null,null,"30º",null,null,null,null,null,null,"30º",null,null,null,null,null,null,"30º"]
["31º",null,null,null,null,null,null,"31º",null,null,null,null,null,null,"31º",null,null,null,null,null,null,"31º"]
["32º",null,null,null,null,null,null,"32º",null,null,null,null,null,null,"32º",null,null,null,null,null,null,"32º"]
["33º",null,null,null,null,null,null,"33º",null,null,null,null,null,null,"33º",null,null,null,null,null,null,"33º"]
["34º",null,null,null,null,null,null,"34º",null,null,null,null,null,null,"34º",null,null,null,null,null,null,"34º"]
["35º",null,null,null,null,null,null,"35º",null,null,null,null,null,null,"35º",null,null,null,null,null,null,"35º"]
["36º",null,null,null,null,null,null,"36º",null,null,null,null,null,null,"36º",null,null,null,null,null,null,"36º"]
["37º",null,null,null,null,null,null,"37º",null,null,null,null,null,null,"37º",null,null,null,null,null,null,"37º"]
["38º",null,null,null,null,null,null,"38º",null,null,null,null,null,null,"38º",null,null,null,null,null,null,"38º"]
["39º",null,null,null,null,null,null,"39º",null,null,null,null,null,null,"39º",null,null,null,null,null,null,"39º"]
["40º",null,null,null,null,null,null,"40º",null,null,null,null,null,null,"40º",null,null,null,null,null,null,"40º"]

{"sheet":"nov2025","index":3,"n_rows":42,"n_cols":34,"rows_kept":42,"cut":false,"hidden":false,"merged":[[0,0,0,5],[0,7,0,12],[0,14,0,19],[0,21,0,26],[0,28,0,33]]}
["01/11/2025 (SÁBADO)",null,null,null,null,null,null,"08/11/2025 (SÁBADO)",null,null,null,null,null,null,"15/11/2025 (SÁBADO)",null,null,null,null,null,null,"22/11/2025 (SÁBADO)",null,null,null,null,null,null,"29/11/2025 (SÁBADO)"]
["POS.","PÁSSARO","PROPRIETÁRIO","ORIGEM","CANTOS","PONTOS",null,"POS.","PÁSSARO","PROPRIETÁRIO","ORIGEM","CANTOS","PONTOS",null,"POS.","PÁSSARO","PROPRIETÁRIO","ORIGEM","CANTOS","PONTOS",null,"POS.","PÁSSARO","PROPRIETÁRIO","ORIGEM","CANTOS","PONTOS",null,"POS.","PÁSSARO","PROPRIETÁRIO","ORIGEM","CANTOS","PONTOS"]
["1º","FRENÉTICO","GIL/LUÍS","JUIZ DE FORA",166,30,null,"1º","FERRADURA","GUSTAVO/GILSON","TRÊS RIOS/S. DUMONT",141,30,null,"1º","CARRASCO","IAGO","MATIAS BARBOSA",152,30,null,"1º","ZULU","JOÃO CARLOS","JUIZ DE FORA",203,30,null,"1º","BICO BOM","PERROTA","PARAÍBA DO SUL",149,30]
["2º","MATA RINDO","JUNINHO/ALESSANDRO/DIEGO","JUIZ DE FORA",156,28,null,"2º","TERRORISTA","FÁBIO","TRÊS RIOS",133,28,null,"2º","ZEUS","HENRIQUE","ANTA",133,28,null,"2º","TAZ","LEVI","PARAÍBA DO SUL",137,28,null,"2º","MALVADO","VINÍCIUS","PETRÓPOLIS",147,28]
["3º","BAZUCA","ADALBERTO","BEMPOSTA",147,26,null,"3º","NEFILIN","OTONIEL","TRÊS RIOS",131,26,null,"3º","TAZ","LEVI","PARAÍBA DO SUL",129,26,null,"3º","CARRASCO","IAGO","MATIAS BARBOSA",132,26,null,"3º","NEFILIN","OTONIEL","TRÊS RIOS",137,26]
["4º","ASA BRANCA","THIAGO BATISTA","PETRÓPOLIS",138,24,null,"4º","BICO BOM","PERROTA","PARAÍBA DO SUL",130,24,null,"4º","TERRORISTA","RODRIGO/BRUNO","PETRÓPOLIS",123,24,null,"4º","PASTOR","RAFAEL ANDRADE","PETRÓPOLIS",131,24,null,"4º","ZEUS","ARTHUR/ALESSANDRO","JUIZ DE FORA",133,24]
["5º","ZEUS","HENRIQUE","ANTA",131,23,null,"5º","ZAP ZAP","HERLO","PARAÍBA DO SUL",127,23,null,"5º","NEFILIN","OTONIEL","TRÊS RIOS",123,23,null,"5º","TERRORISTA","RODRIGO/BRUNO","PETRÓPOLIS",128,23,null,"5º","TERRORISTA","RODRIGO","PETRÓPOLIS",130,23]
["6º","METEORO","HARLEI","TRÊS RIOS",123,22,null,"6º","SUSSURRO","LOIRIN/DOMINGOS","PARAÍBA DO SUL",119,22,null,"6º","BICO BOM","PERROTA","PARAÍBA DO SUL",121,22,null,"6º","TUIN","JOSÉ RICARDO","PARAÍBA DO SUL",127,22,null,"6º","CARRASCO","IAGO","MATIAS BARBOSA",126,22]
["7º","SUSSURRO","LOIRIN/DOMINGOS","PARAÍBA DO SUL",122,21,null,"7º","CHEFINHO","RODRIGO","PETRÓPOLIS",116,21,null,"7º","TUIN","JOSÉ RICARDO","PARAÍBA DO SUL",120,21,null,"7º","ZEUS","HENRIQUE","ANTA",126,21,null,"7º","TEMEROSO","MUTUM","JUIZ DE FORA",122,21]
["8º","TERRORISTA","FÁBIO","TRÊS RIOS",119,20,null,"8º","MASCARÁDO","MARCINHO","AREAL",114,20,null,"8º","ZAP ZAP","HERLO","PARAÍBA DO SUL",109,20,null,"8º","SUSSURRO","DOMINGOS/LOIRIN","PARAÍBA DO SUL",122,20,null,"8º","PIT BULL","JOÃO MARCOS","AREAL",122,20]
["9º","BICO BOM","PERROTA","PARAÍBA DO SUL",116,19,null,"9º","ZEUS","HENRIQUE","ANTA",105,19,null,"9º","BRUTO","RUAN","PARAÍBA DO SUL",105,19,null,"9º","NEFILIN","OTONIEL","TRÊS RIOS",118,19,null,"9º","JUSTICEIRO","HENRIQUE","ANTA",117,19]
["10º","CABULOSO","LEVI","PARAÍBA DO SUL",109,18,null,"10º","APOCALIPSE","RAMON","MATIAS BARBOSA",104,18,null,"10º","GAVIÃO","JOSÉ PAULO","PARAÍBA DO SUL",104,18,null,"10º","ADRENALINA","ROGÉRIO","JUIZ DE FORA",113,18,null,"10º","ZAP ZAP","HERLO","PARAÍBA DO SUL",115,18]
["11º","TUIN","JOSÉ RICARDO","PARAÍBA DO SUL",108,17,null,"11º","TORNADO","RAMON","MATIAS BARBOSA",96,17,null,"11º","CHACAL","JUNINHO","TRÊS RIOS",104,17,null,"11º","BICO BOM","PERROTA","PARAÍBA DO SUL",110,17,null,"11º","TAZ","LEVI","PARAÍBA DO SUL",115,17]
["12º","ABSOLUTO","SOLDADO","NOVA IGUAÇU",107,16,null,"12º","CICLOPE","ALEXANDRE","JUIZ DE FORA",90,16,null,"12º","ROBA CENA","UESLEI","PARAÍBA DO SUL",101,16,null,"12º","MISTÉRIO","BRUNO/RODRIGO","PETRÓPOLIS",107,16,null,"12º","157","TT","TRÊS RIOS",111,16]
["13º","PIT BULL","JOÃO MARCOS","AREAL",101,15,null,"13º","TAZ","ANDERSON/LEVI","PARAÍBA DO SUL",89,15,null,"13º","SUSSURRO","LOIRIN/DOMINGOS","PARAÍBA DO SUL",94,15,null,"13º","COVID-19","GUSTAVO/GILSON","TRÊS RIOS/S. DUMONT",101,15,null,"13º","TUIM","JOSÉ RICARDO","PARAÍBA DO SUL",105,15]
["14º","FÓRMULA 1","GILSON/GUSTAVO","TRÊS RIOS/S. DUMONT",93,14,null,"14º","XIA","FAMÍLIA MINGAL","PARAÍBA DO SUL",88,14,null,"14º","ADRENALINA","ROGÉRIO","JUIZ DE FORA",93,14,null,"14º","QUALQUER COISA","GELSON","TRÊS RIOS",99,14,null,"14º","GRANADA","GIBA","TRÊS RIOS",100,14]
["15º","SUPER","RODRIGO/BRUNO","PETRÓPOLIS",85,13,null,"15º","SENNA","LEVI LAMECK/MATHEUS","PARAÍBA DO SUL",76,13,null,"15º","DIAMANTE","JOANES","PARAÍBA DO SUL",82,13,null,"15º","ARENA BRIGADA","ADALBERTO","BEMPOSTA",96,13,null,"15º","SUSSURRO","DOMINGOS/LOIRIN","PARAÍBA DO SUL",96,13]
["16º","SUPER BOY","EDUARDO","TRÊS RIOS",85,null,null,"16º","003","GUSTAVO/GILSON","TRÊS RIOS/S. DUMONT",71,null,null,"16º","REI","ALEXANDRO","VASSOURAS",82,null,null,"16º","ATIRADOR","GELSON","TRÊS RIOS",95,null,null,"16º","ACESSO NEGADO","ADALBERTO","BEMPOSTA",95]
["17º","RISADA","JONES","PARAÍBA DO SUL",83,null,null,"17º","SUPER BOY","EDUARDO","TRÊS RIOS",71,null,null,"17º","FARAÓ","HARLEI","TRÊS RIOS",78,null,null,"17º","VENENO","FAMÍLIA MINGAL/MATHEUS","PARAÍBA DO SUL",89,null,null,"17º","FANÁTICO","PAULINHO","PARAÍBA DO SUL",71]
["18º","RAGNAR","WERTON/ALEX LAMA","PARAÍBA DO SUL",74,null,null,"18º","NEGUINHO","JESUS DE PAULA","TRÊS RIOS",62,null,null,"18º","CAPRICHO","LEANDRO","TRÊS RIOS",78,null,null,"18º","DEMOLIDOR","MICHEL","TRÊS RIOS",78,null,null,"18º","INVICTA","MÁRCIO GABRIEL","PARAÍBA DO SUL",65]
["19º","LEGENDÁRIO","LUÍS PENA BRANCA","JUIZ DE FORA",70,null,null,"19º",null,null,null,null,null,null,"19º","WOLVERINE","MURILO","TRÊS RIOS",50,null,null,"19º","RENEGADO","LÉO NEGÃO","JUIZ DE FORA",70,null,null,"19º","FULGORE","SILAS FLÁVIO","TRÊS RIOS",41]
["20º","INDOMÁVEL","MATHEUS","PARAÍBA DO SUL",63,null,null,"20º",null,null,null,null,null,null,"20º",null,null,null,null,null,null,"20º",null,null,null,null,null,null,"20º"]
["21º","R10","BUIU","TRÊS RIOS",63,null,null,"21º",null,null,null,null,null,null,"21º",null,null,null,null,null,null,"21º",null,null,null,null,null,null,"21º"]
["22º","APOCALIPSE","RAMON","MATIAS BARBOSA",52,null,null,"22º",null,null,null,null,null,null,"22º",null,null,null,null,null,null,"22º",null,null,null,null,null,null,"22º"]
["23º","PIVETE","SOLDADO","NOVA IGUAÇU",47,null,null,"23º",null,null,null,null,null,null,"23º",null,null,null,null,null,null,"23º",null,null,null,null,null,null,"23º"]
["24º","PIT BULL","JOÃO CARLOS DÃO","PARAÍBA DO SUL",43,null,null,"24º",null,null,null,null,null,null,"24º",null,null,null,null,null,null,"24º",null,null,null,null,null,null,"24º"]
["25º",null,null,null,null,null,null,"25º",null,null,null,null,null,null,"25º",null,null,null,null,null,null,"25º",null,null,null,null,null,null,"25º"]
["26º",null,null,null,null,null,null,"26º",null,null,null,null,null,null,"26º",null,null,null,null,null,null,"26º",null,null,null,null,null,null,"26º"]
["27º",null,null,null,null,null,null,"27º",null,null,null,null,null,null,"27º",null,null,null,null,null,null,"27º",null,null,null,null,null,null,"27º"]
["28º",null,null,null,null,null,null,"28º",null,null,null,null,null,null,"28º",null,null,null,null,null,null,"28º",null,null,null,null,null,null,"28º"]
["29º",null,null,null,null,null,null,"29º",null,null,null,null,null,null,"29º",null,null,null,null,null,null,"29º",null,null,null,null,null,null,"29º"]
["30º",null,null,null,null,null,null,"30º",null,null,null,null,null,null,"30º",null,null,null,null,null,null,"30º",null,null,null,null,null,null,"30º"]
["31º",null,null,null,null,null,null,"31º",null,null,null,null,null,null,"31º",null,null,null,null,null,null,"31º",null,null,null,null,null,null,"31º"]
["32º",null,null,null,null,null,null,"32º",null,null,null,null,null,null,"32º",null,null,null,null,null,null,"32º",null,null,null,null,null,null,"32º"]
["33º",null,null,null,null,null,null,"33º",null,null,null,null,null,null,"33º",null,null,null,null,null,null,"33º",null,null,null,null,null,null,"33º"]
["34º",null,null,null,null,null,null,"34º",null,null,null,null,null,null,"34º",null,null,null,null,null,null,"34º",null,null,null,null,null,null,"34º"]
["35º",null,null,null,null,null,null,"35º",null,null,null,null,null,null,"35º",null,null,null,null,null,null,"35º",null,null,null,null,null,null,"35º"]
["36º",null,null,null,null,null,null,"36º",null,null,null,null,null,null,"36º",null,null,null,null,null,null,"36º",null,null,null,null,null,null,"36º"]
["37º",null,null,null,null,null,null,"37º",null,null,null,null,null,null,"37º",null,null,null,null,null,null,"37º",null,null,null,null,null,null,"37º"]
["38º",null,null,null,null,null,null,"38º",null,null,null,null,null,null,"38º",null,null,null,null,null,null,"38º",null,null,null,null,null,null,"38º"]
["39º",null,null,null,null,null,null,"39º",null,null,null,null,null,null,"39º",null,null,null,null,null,null,"39º",null,null,null,null,null,null,"39º"]
["40º",null,null,null,null,null,null,"40º",null,null,null,null,null,null,"40º",null,null,null,null,null,null,"40º",null,null,null,null,null,null,"40º"]

{"sheet":"dez2025","index":4,"n_rows":42,"n_cols":27,"rows_kept":42,"cut":false,"hidden":false,"merged":[[0,0,0,5],[0,7,0,12],[0,14,0,19],[0,21,0,26]]}
["06/12/2025 (SÁBADO)",null,null,null,null,null,null,"13/12/2025 (SÁBADO)",null,null,null,null,null,null,"20/12/2025 (SÁBADO)",null,null,null,null,null,null,"27/12/2025 (SÁBADO)"]
["POS.","PÁSSARO","PROPRIETÁRIO","ORIGEM","CANTOS","PONTOS",null,"POS.","PÁSSARO","PROPRIETÁRIO","ORIGEM","CANTOS","PONTOS",null,"POS.","PÁSSARO","PROPRIETÁRIO","ORIGEM","CANTOS","PONTOS",null,"POS.","PÁSSARO","PROPRIETÁRIO","ORIGEM","CANTOS","PONTOS"]
["1º","MALVADO","VINÍCIUS","PETRÓPOLIS",195,30,null,"1º","MALVADO","VINÍCIUS","PETRÓPOLIS",175,30,null,"1º",null,null,null,null,30,null,"1º",null,null,null,null,30]
["2º","TROVÃO","LUCIMAR/LUIZ HENRIQUE","TRÊS RIOS",158,28,null,"2º","TROVÃO","LUCIMAR/L. HENRIQUE","TRÊS RIOS",167,28,null,"2º",null,null,null,null,28,null,"2º",null,null,null,null,28]
["3º","CRACK","MATHEUS","JUIZ DE FORA",149,26,null,"3º","BARÃO","RAFAEL DIAS","PARAÍBA DO SUL",165,26,null,"3º",null,null,null,null,26,null,"3º",null,null,null,null,26]
["4º","BICO BOM","PERROTA","PARAÍBA DO SUL",147,24,null,"4º","SOMBRA","HENRIQUE","ANTA",159,24,null,"4º",null,null,null,null,24,null,"4º",null,null,null,null,24]
["5º","BOLT","RAFAEL","PARAÍBA DO SUL",127,23,null,"5º","BICO BOM","PERROTA","PARAÍBA DO SUL",152,23,null,"5º",null,null,null,null,23,null,"5º",null,null,null,null,23]
["6º","AVASSALADOR","WELINGTON","TRÊS RIOS",127,22,null,"6º","GUARDIÃO","ÍCARO","PARAÍBA DO SUL",130,22,null,"6º",null,null,null,null,22,null,"6º",null,null,null,null,22]
["7º","TERRORISTA","RODRIGO","PETRÓPOLIS",123,21,null,"7º","SNIPER","F. MINGAL/MATHEUS","PARAÍBA DO SUL",130,21,null,"7º",null,null,null,null,21,null,"7º",null,null,null,null,21]
["8º","SUSSURRO","DOMINGOS/LOIRIN","PARAÍBA DO SUL",122,20,null,"8º","ZAP ZAP","GLEISON","TRÊS RIOS",125,20,null,"8º",null,null,null,null,20,null,"8º",null,null,null,null,20]
["9º","ANDROID","OTÁVIO","LEVY GASPARIAN",121,19,null,"9º","PIT BULL","JOÃO MARCOS","AREAL",120,19,null,"9º",null,null,null,null,19,null,"9º",null,null,null,null,19]
["10º","PIT BULL","JOÃO MARCOS","AREAL",117,18,null,"10º","TERRORISTA","RODRIGO/BRUNO","PETRÓPOLIS",118,18,null,"10º",null,null,null,null,18,null,"10º",null,null,null,null,18]
["11º","ZAP ZAP","HERLO","PARAÍBA DO SUL",115,17,null,"11º","SUSSURRO","DOMINGOS/LOIRINHO","PARAÍBA DO SUL",118,17,null,"11º",null,null,null,null,17,null,"11º",null,null,null,null,17]
["12º","FERA","REINALDO","JUIZ DE FORA",111,16,null,"12º","GAVIÃO","JOSÉ PAULO","PARAÍBA DO SUL",110,16,null,"12º",null,null,null,null,16,null,"12º",null,null,null,null,16]
["13º","ABSOLUTO","GILSON/GUSTAVO","TRÊS RIOS/S. DUMONT",104,15,null,"13º","NEFILIN","OTONIEL","TRÊS RIOS",108,15,null,"13º",null,null,null,null,15,null,"13º",null,null,null,null,15]
["14º","INVICTA","MÁRCIO","PARAÍBA DO SUL",96,14,null,"14º","COBRA","ADELMO","PARAÍBA DO SUL",107,14,null,"14º",null,null,null,null,14,null,"14º",null,null,null,null,14]
["15º","SEM LIMITE","IGOR","PETRÓPOLIS",86,13,null,"15º","EXCEPTOS","RAFAEL DIAS","PARAÍBA DO SUL",102,13,null,"15º",null,null,null,null,13,null,"15º",null,null,null,null,13]
["16º","BAIXA RENDA","RODRIGO","PETRÓPOLIS",75,null,null,"16º","ROUBA CENA","RUAN LIMA","PARAÍBA DO SUL",86,null,null,"16º",null,null,null,null,null,null,"16º"]
["17º","ROUBA CENA","RUAN LIMA","PARAÍBA DO SUL",64,null,null,"17º",null,null,null,null,null,null,"17º",null,null,null,null,null,null,"17º"]
["18º","RAMBO","HENRIQUE","ANTA",53,null,null,"18º",null,null,null,null,null,null,"18º",null,null,null,null,null,null,"18º"]
["19º","ATIRADOR","GELSON","TRÊS RIOS",53,null,null,"19º",null,null,null,null,null,null,"19º",null,null,null,null,null,null,"19º"]
["20º","TROVÃO","JORDAN","TRÊS RIOS",52,null,null,"20º",null,null,null,null,null,null,"20º",null,null,null,null,null,null,"20º"]
["21º",null,null,null,null,null,null,"21º",null,null,null,null,null,null,"21º",null,null,null,null,null,null,"21º"]
["22º",null,null,null,null,null,null,"22º",null,null,null,null,null,null,"22º",null,null,null,null,null,null,"22º"]
["23º",null,null,null,null,null,null,"23º",null,null,null,null,null,null,"23º",null,null,null,null,null,null,"23º"]
["24º",null,null,null,null,null,null,"24º",null,null,null,null,null,null,"24º",null,null,null,null,null,null,"24º"]
["25º",null,null,null,null,null,null,"25º",null,null,null,null,null,null,"25º",null,null,null,null,null,null,"25º"]
["26º",null,null,null,null,null,null,"26º",null,null,null,null,null,null,"26º",null,null,null,null,null,null,"26º"]
["27º",null,null,null,null,null,null,"27º",null,null,null,null,null,null,"27º",null,null,null,null,null,null,"27º"]
["28º",null,null,null,null,null,null,"28º",null,null,null,null,null,null,"28º",null,null,null,null,null,null,"28º"]
["29º",null,null,null,null,null,null,"29º",null,null,null,null,null,null,"29º",null,null,null,null,null,null,"29º"]
["30º",null,null,null,null,null,null,"30º",null,null,null,null,null,null,"30º",null,null,null,null,null,null,"30º"]
["31º",null,null,null,null,null,null,"31º",null,null,null,null,null,null,"31º",null,null,null,null,null,null,"31º"]
["32º",null,null,null,null,null,null,"32º",null,null,null,null,null,null,"32º",null,null,null,null,null,null,"32º"]
["33º",null,null,null,null,null,null,"33º",null,null,null,null,null,null,"33º",null,null,null,null,null,null,"33º"]
["34º",null,null,null,null,null,null,"34º",null,null,null,null,null,null,"34º",null,null,null,null,null,null,"34º"]
["35º",null,null,null,null,null,null,"35º",null,null,null,null,null,null,"35º",null,null,null,null,null,null,"35º"]
["36º",null,null,null,null,null,null,"36º",null,null,null,null,null,null,"36º",null,null,null,null,null,null,"36º"]
["37º",null,null,null,null,null,null,"37º",null,null,null,null,null,null,"37º",null,null,null,null,null,null,"37º"]
["38º",null,null,null,null,null,null,"38º",null,null,null,null,null,null,"38º",null,null,null,null,null,null,"38º"]
["39º",null,null,null,null,null,null,"39º",null,null,null,null,null,null,"39º",null,null,null,null,null,null,"39º"]
["40º",null,null,null,null,null,null,"40º",null,null,null,null,null,null,"40º",null,null,null,null,null,null,"40º"]